bitfinex/quotes_SOLUSD_20220119
["timestamp","ask_amount","ask_price","bid_price","bid_amount"]
[1642574293702,11.1236,138.02,137.97,0.25]
[1642574293906,11.32397957,138.02,137.95,0.25]
[1642574295431,11.32397957,138.02,137.94,0.25]
[1642574296833,10.8736,138.02,137.94,0.25]
[1642574298034,10.8736,138.02,137.94,11.1242]
[1642574298236,2.898,138.03,137.94,12.50595289]
[1642574298436,2.898,138.03,137.94,11.1242]
[1642574298635,0.25,138.02,137.94,11.1242]
[1642574299140,2.898,138.03,137.95,35.35106414]
[1642574299338,10.8729,138.03,137.95,55.12186414]
[1642574299543,10.8729,138.03,137.96,1.63175289]
[1642574299939,10.8729,138.03,137.98,48.21302884]
[1642574300340,10.8729,138.03,137.99,0.25]
[1642574301544,10.8719,138.04,137.99,0.25]
[1642574303344,13.769,138.06,137.99,0.25]
[1642574303545,1.49470938,138.07,137.99,0.25]
[1642574303746,1.49470938,138.07,137.99,1.63175289]
[1642574304147,1.49470938,138.07,137.99,0.25]
[1642574304454,12.36440938,138.07,137.99,11.1204]
[1642574306046,12.36440938,138.07,137.99,10.8704]
[1642574308347,1.49470938,138.07,138.02,10.8683]
[1642574308748,1.49470938,138.07,138.03,0.25]
[1642574308950,1.49470938,138.07,138.02,10.8683]
[1642574309250,1.49470938,138.07,138.01,37.50367711]
[1642574309450,1.49470938,138.07,138.02,0.25]
[1642574309653,4.39070938,138.07,138.02,0.25]
[1642574310751,1.49470938,138.07,138.02,0.25]
[1642574311154,2.896,138.09,138.02,11.1182]
[1642574311352,2.896,138.12,138.03,2.896]
[1642574311557,2.896,138.13,138.04,6.0]
[1642574311751,2.896,138.13,138.04,0.25]
[1642574311953,17.95165998,138.12,138.03,2.896]
[1642574312154,13.7625,138.11,138.03,10.8676]
[1642574312352,14.0125,138.11,138.04,0.25]
[1642574312753,14.0125,138.11,138.03,10.8676]
[1642574312952,14.0125,138.11,138.04,0.25]
[1642574313253,14.0125,138.11,138.03,0.25]
[1642574314558,13.7625,138.11,138.03,0.25]
[1642574314959,13.7625,138.11,138.03,11.1176]
[1642574315363,10.8665,138.11,138.03,11.1176]
[1642574316563,2.896,138.1,138.03,11.1176]
[1642574316863,3.146,138.1,138.03,11.1176]
[1642574317062,2.896,138.1,138.04,41.69567365]
[1642574317264,13.7625,138.11,138.05,0.25]
[1642574318164,10.8665,138.11,138.05,0.25]
[1642574320869,6.0,138.1,138.05,0.25]
[1642574323489,16.8672,138.1,138.05,0.25]
[1642574323689,10.8672,138.1,138.05,0.25]
[1642574323889,6.0,138.09,138.05,0.25]
[1642574325190,16.8681,138.09,138.02,25.6655]
[1642574325392,0.25,138.08,138.02,25.6655]
[1642574325593,2.896,138.08,138.02,22.7695]
[1642574325794,2.896,138.1,138.02,22.7695]
[1642574325991,2.896,138.13,138.02,22.7695]
[1642574326192,3.146,138.13,138.02,22.7695]
[1642574326596,3.146,138.13,138.03,0.25]
[1642574326793,10.8673,138.1,138.03,47.60393142]
[1642574330207,2.896,138.11,138.04,16.8667]
[1642574330507,8.40327814,138.14,138.04,16.8667]
[1642574330709,8.40327814,138.14,138.05,26.2601]
[1642574330907,13.28942402,138.13,138.05,23.3641]
[1642574331114,2.896,138.12,138.05,23.3641]
[1642574331308,0.25,138.11,138.05,34.2301]
[1642574331707,13.762,138.12,138.05,34.2301]
[1642574331916,10.866,138.12,138.05,34.2301]
[1642574332541,8.40327814,138.14,138.06,6.0]
[1642574332739,1.6225512,138.14,138.08,10.8626]
[1642574332940,1.6225512,138.14,138.08,83.2326]
[1642574333140,1.6225512,138.14,138.09,0.25]
[1642574334342,1.6225512,138.14,138.09,6.25]
[1642574334542,1.6225512,138.14,138.1,10.8619]
[1642574334740,1.6225512,138.14,138.11,0.25]
[1642574336644,1.6225512,138.14,138.09,6.0]
[1642574336850,1.6225512,138.14,138.11,0.25]
[1642574337945,1.6225512,138.14,138.1,0.25]
[1642574339545,1.6225512,138.14,138.1,11.1121]
[1642574339747,1.6225512,138.14,138.11,6.0]
[1642574340146,1.6225512,138.14,138.12,0.25]
[1642574340749,1.6225512,138.14,138.11,6.0]
[1642574340949,1.6225512,138.14,138.11,6.25]
[1642574343152,0.2394904,138.14,138.11,6.25]
[1642574349461,0.2394904,138.14,138.11,17.1113]
[1642574351060,0.2394904,138.14,138.12,6.0]
[1642574351690,0.2394904,138.14,138.11,34.6908]
[1642574352692,0.2394904,138.14,138.12,0.25]
[1642574356193,0.2394904,138.14,138.09,0.25]
[1642574356395,7.1914904,138.14,138.09,0.25]
[1642574356598,7.1914904,138.14,138.08,0.69401769]
[1642574356795,0.25,138.13,138.08,0.69401769]
[1642574357095,2.896,138.12,138.08,0.69401769]
[1642574357296,3.146,138.13,138.08,0.69401769]
[1642574357496,2.896,138.13,138.08,0.69401769]
[1642574357795,2.896,138.13,138.08,0.94401769]
[1642574357997,13.7611,138.13,138.08,0.69401769]
[1642574358201,2.04567468,138.12,138.08,0.94401769]
[1642574358795,2.04567468,138.12,138.08,0.69401769]
[1642574358997,1.54567468,138.12,138.08,0.69401769]
[1642574359203,1.79567468,138.11,138.08,0.69401769]
[1642574359400,4.69167468,138.11,138.08,0.69401769]
[1642574359799,6.06439994,138.1,138.08,0.69401769]
[1642574359999,24.15312359,138.1,138.08,0.69401769]
[1642574360499,35.02052359,138.1,138.08,0.69401769]
[1642574361403,0.25,138.09,138.08,1.769e-05]
[1642574361605,3.146,138.09,138.08,1.769e-05]
[1642574362000,9.146,138.09,138.08,1.769e-05]
[1642574362598,20.0159,138.09,138.08,1.769e-05]
[1642574372410,17.1199,138.09,138.08,1.769e-05]
[1642574376113,20.0159,138.09,138.08,1.769e-05]
[1642574380642,17.1199,138.09,138.08,1.769e-05]
[1642574386646,25.10322179,138.09,138.08,1.769e-05]
[1642574388748,24.85322179,138.09,138.08,1.769e-05]
[1642574390251,25.10322179,138.09,138.08,1.769e-05]
[1642574391552,21.21849485,138.09,138.08,1.769e-05]
[1642574393754,14.45377924,138.09,138.08,1.769e-05]
[1642574394155,8.45377924,138.09,138.08,1.769e-05]
[1642574395355,8.20377924,138.09,138.08,1.769e-05]
[1642574395555,4.10518439,138.1,138.08,1.769e-05]
[1642574395757,3.03219997,138.09,138.08,1.769e-05]
[1642574396554,14.97158439,138.11,138.08,1.769e-05]
[1642574396955,3.03219997,138.1,138.08,1.769e-05]
[1642574397557,3.03219997,138.09,138.08,1.769e-05]
[1642574397754,3.03219997,138.1,138.08,1.769e-05]
[1642574399058,10.8664,138.11,138.08,1.769e-05]
[1642574403267,6.06439994,138.1,138.08,1.769e-05]
[1642574407976,16.93169994,138.1,138.08,1.769e-05]
[1642574408177,58.25,138.09,138.08,1.769e-05]
[1642574408375,4.27729485,138.09,138.08,1.769e-05]
[1642574409178,10.27729485,138.09,138.08,1.769e-05]
[1642574409376,21.14629485,138.09,138.08,1.769e-05]
[1642574410177,49.66147835,138.09,138.08,1.769e-05]
[1642574410381,0.01998231,138.06,137.99,0.34825695]
[1642574410584,10.8737,138.04,137.99,0.34825695]
[1642574410780,0.25,138.03,137.99,0.34825695]
[1642574410980,3.148,138.03,137.99,0.34825695]
[1642574411181,0.25,138.03,137.99,0.34825695]
[1642574411404,2.898,138.02,137.99,0.34825695]
[1642574411599,13.7721,138.02,137.99,0.34825695]
[1642574412604,10.8741,138.02,137.99,0.34825695]
[1642574413001,0.25,138.03,137.99,0.34825695]
[1642574413206,13.7707,138.04,137.99,0.34825695]
[1642574413405,10.8727,138.04,137.99,0.34825695]
[1642574414404,13.78898231,138.06,137.99,0.34825695]
[1642574414605,13.78898231,138.06,137.99,0.59825695]
[1642574414807,13.78898231,138.06,137.99,0.34825695]
[1642574415204,0.25,138.05,137.99,0.34825695]
[1642574415404,0.25,138.05,137.99,11.21905695]
[1642574415605,0.25,138.05,137.99,57.16222385]
[1642574415807,0.25,138.05,138.0,0.25]
[1642574416107,13.78898231,138.06,138.05,0.09825695]
[1642574416306,19.85338225,138.06,138.05,0.09825695]
[1642574417106,25.85338225,138.06,138.05,0.09825695]
[1642574417406,26.10338225,138.06,138.05,0.09825695]
[1642574421411,23.20538225,138.06,138.05,0.09825695]
[1642574421613,26.10138225,138.06,138.05,0.09825695]
[1642574427218,59.09,138.05,137.96,0.25]
[1642574427418,10.8755,138.03,137.96,0.25]
[1642574428218,2.95436531,138.02,137.96,0.25]
[1642574428418,10.8755,138.01,137.96,0.25]
[1642574428819,10.8755,138.01,137.95,2.896]
[1642574429017,0.25,138.0,137.93,24.2143]
[1642574429218,13.7735,138.01,137.93,24.2143]
[1642574429219,4.08906734,138.01,137.93,24.2143]
[1642574429420,1.19106734,138.01,137.93,24.2143]
[1642574429722,11.1257,138.0,137.93,24.2143]
[1642574430121,10.8757,138.0,137.94,0.25]
[1642574430323,1.19106734,138.01,137.94,11.1249]
[1642574431022,12.06546734,138.01,137.94,0.25]
[1642574431224,0.25,138.0,137.93,24.2143]
[1642574431423,1.19106734,138.01,137.94,0.25]
[1642574432123,1.19106734,138.01,137.93,35.0899]
[1642574432326,0.25,138.0,137.94,0.25]
[1642574432525,10.8763,137.99,137.94,0.25]
[1642574433023,10.8763,137.99,137.93,35.0899]
[1642574433225,10.8763,137.99,137.94,0.25]
[1642574436431,10.8752,138.0,137.94,0.25]
[1642574436629,24.04866734,138.01,137.94,0.25]
[1642574438451,34.92316734,138.01,137.94,11.1248]
[1642574440355,12.06556734,138.01,137.94,11.1248]
[1642574443356,12.06556734,138.01,137.93,2.899]
[1642574443558,9.149,138.0,137.89,38.2781]
[1642574443758,10.8786,137.97,137.9,23.4156]
[1642574444657,13.7776,137.97,137.91,0.25]
[1642574445958,10.8786,137.97,137.91,0.25]
[1642574448559,13.7758,137.98,137.91,17.1272]
[1642574448761,2.899,137.99,137.91,17.1272]
[1642574448960,1.19106734,138.01,137.91,17.1272]
[1642574448961,1.19106734,138.01,137.92,26.0506]
[1642574449360,1.19106734,138.01,137.93,0.25]
[1642574449563,1.19106734,138.01,137.93,35.26496703]
[1642574449762,1.19106734,138.01,137.94,23.3232]
[1642574449961,1.19106734,138.01,137.94,26.2222]
[1642574450161,1.19106734,138.01,137.95,0.25]
[1642574450364,1.19106734,138.01,137.95,11.124]
[1642574454566,27.28338231,138.06,137.98,0.17475477]
[1642574454766,27.28338231,138.06,137.98,11.04595477]
[1642574455067,6.0,138.05,137.98,11.04595477]
[1642574455266,6.0,138.05,137.99,0.25]
[1642574455569,16.8718,138.05,137.99,36.72127951]
[1642574456168,16.8718,138.05,137.98,11.04595477]
[1642574456367,16.8718,138.05,137.98,0.17475477]
[1642574456571,3.148,138.04,137.98,0.17475477]
[1642574456771,10.8745,138.03,137.98,0.17475477]
[1642574457071,2.898,138.02,137.98,0.17475477]
[1642574458477,10.8745,138.01,137.98,0.17475477]
[1642574458677,6.06439994,138.0,137.98,0.17475477]
[1642574459477,6.0,138.03,137.98,0.17475477]
[1642574459877,27.5107,138.05,137.98,0.17475477]
[1642574460282,27.5107,138.05,137.98,0.42475477]
[1642574460481,10.8721,138.04,137.98,0.42475477]
[1642574461681,10.8721,138.04,137.98,11.29655477]
[1642574462784,10.8721,138.04,138.03,0.17475477]
[1642574463188,16.93649994,138.04,138.03,0.17475477]
[1642574465018,22.93649994,138.04,138.03,0.17475477]
[1642574465217,16.93649994,138.04,138.03,0.17475477]
[1642574466020,22.93649994,138.04,138.03,0.17475477]
[1642574466518,16.93649994,138.04,138.03,0.17475477]
[1642574469120,23.18649994,138.04,138.03,0.17475477]
[1642574469321,26.08249994,138.04,138.03,0.17475477]
[1642574469722,32.0,138.03,137.96,39.56450387]
[1642574469922,3.148,138.03,137.95,24.372]
[1642574470121,10.8742,138.02,137.95,35.2462]
[1642574470722,0.25,138.01,137.95,35.2462]
[1642574470923,3.148,138.01,137.95,24.372]
[1642574471122,11.1248,138.01,137.96,0.25]
[1642574471724,10.8748,138.01,137.96,0.25]
[1642574477528,10.8748,138.01,137.95,24.372]
[1642574477730,10.8748,138.01,137.96,0.25]
[1642574482731,10.8748,138.01,138.0,0.08769166]
[1642574482930,16.93919994,138.01,138.0,0.08769166]
[1642574488741,17.18919994,138.01,138.0,0.08769166]
[1642574488942,20.08719994,138.01,138.0,0.08769166]
[1642574489142,19.83719994,138.01,138.0,0.08769166]
[1642574490477,16.93919994,138.01,138.0,0.08769166]
[1642574491076,20.08719994,138.01,138.0,0.08769166]
[1642574491676,19.83719994,138.01,138.0,0.08769166]
[1642574491873,8.96239994,138.01,138.0,0.08769166]
[1642574492076,6.06439994,138.01,138.0,0.08769166]
[1642574492275,1.21858031,138.03,138.0,0.08769166]
[1642574492976,1.21858031,138.03,138.0,41.08933097]
[1642574493175,1.21858031,138.03,138.0,41.33933097]
[1642574493376,1.9941524,138.05,138.0,41.33933097]
[1642574493577,1.9941524,138.06,138.01,2.898]
[1642574493775,1.9941524,138.07,138.02,11.1178]
[1642574493975,1.9941524,138.08,138.03,2.896]
[1642574494184,1.9941524,138.08,138.04,0.25]
[1642574494376,1.9941524,138.09,138.04,0.25]
[1642574494776,1.9941524,138.1,138.04,0.25]
[1642574494978,1.9941524,138.1,138.04,3.146]
[1642574495178,1.9941524,138.11,138.04,3.146]
[1642574495478,1.9941524,138.11,138.04,0.25]
[1642574495676,1.9941524,138.11,138.04,3.146]
[1642574495878,1.9941524,138.11,138.05,47.68182801]
[1642574496077,1.9941524,138.11,138.05,58.54732801]
[1642574496276,1.9941524,138.11,138.06,0.25]
[1642574496876,12.8597524,138.12,138.06,0.25]
[1642574500082,10.8656,138.12,138.06,0.25]
[1642574500787,10.8656,138.12,138.06,14.0111]
[1642574500985,4.8901524,138.14,138.06,21.3231]
[1642574501282,1.9941524,138.14,138.06,21.3231]
[1642574501585,1.9941524,138.16,138.1,0.08769166]
[1642574501782,1.9941524,138.16,138.11,39.0593015]
[1642574502184,1.9941524,138.17,138.12,0.25]
[1642574502783,3.21353072,138.18,138.12,0.25]
[1642574503384,2.2441524,138.17,138.11,39.0593015]
[1642574503584,5.1391524,138.17,138.11,39.0593015]
[1642574504387,5.1391524,138.17,138.1,0.08769166]
[1642574504586,10.8649,138.15,138.1,0.08769166]
[1642574504789,3.145,138.14,138.1,0.08769166]
[1642574504990,0.25,138.14,138.1,0.08769166]
[1642574505188,2.896,138.13,138.1,0.08769166]
[1642574505388,6.06439994,138.12,138.1,0.08769166]
[1642574508592,10.8649,138.13,138.1,0.08769166]
[1642574510392,13.7601,138.14,138.1,0.08769166]
[1642574510594,7.9941524,138.16,138.1,0.08769166]
[1642574510792,6.0,138.16,138.1,0.08769166]
[1642574510994,6.10853072,138.18,138.1,0.08769166]
[1642574511192,1.21937832,138.18,138.1,10.94969166]
[1642574511394,10.8602,138.19,138.12,49.1057808]
[1642574511592,13.7552,138.19,138.12,49.1057808]
[1642574511794,13.7552,138.19,138.13,0.25]
[1642574512991,10.8602,138.19,138.13,0.25]
[1642574514497,10.8602,138.19,138.13,11.1097]
[1642574515497,2.895,138.2,138.13,83.4797]
[1642574515695,2.895,138.21,138.13,11.1097]
[1642574515997,6.0,138.2,138.13,14.0037]
[1642574516193,6.0,138.21,138.13,14.0037]
[1642574516424,6.0,138.21,138.13,11.1097]
[1642574516425,2.894,138.2,138.13,11.1097]
[1642574516621,6.0,138.19,138.13,11.1097]
[1642574517022,1.9941524,138.23,138.14,67.0]
[1642574517224,1.9941524,138.26,138.16,72.37]
[1642574517423,1.9941524,138.28,138.19,10.8543]
[1642574517621,1.9941524,138.28,138.2,2.892]
[1642574517821,31.0733557,138.29,138.2,2.892]
[1642574517822,2.892,138.27,138.2,35.59317968]
[1642574518023,43.9189081,138.29,138.2,38.48517968]
[1642574518223,41.9247557,138.29,138.2,38.48517968]
[1642574518821,13.7454,138.29,138.2,38.48517968]
[1642574519222,13.7454,138.29,138.2,35.59317968]
[1642574519425,13.7454,138.29,138.21,10.8533]
[1642574519723,0.25,138.28,138.22,0.25]
[1642574520323,11.104,138.28,138.22,0.25]
[1642574522026,11.104,138.28,138.26,0.08769166]
[1642574522726,6.06439994,138.27,138.26,0.08769166]
[1642574525428,8.95639994,138.27,138.26,0.08769166]
[1642574526727,6.06439994,138.27,138.26,0.08769166]
[1642574527329,10.854,138.28,138.26,0.08769166]
[1642574530931,6.06439994,138.27,138.26,0.08769166]
[1642574531232,6.31439994,138.27,138.26,0.08769166]
[1642574531832,6.06439994,138.27,138.26,0.08769166]
[1642574534847,16.91919994,138.27,138.26,0.08769166]
[1642574535037,23.16919994,138.27,138.26,0.08769166]
[1642574535537,23.16919994,138.27,138.2,35.34317968]
[1642574535840,6.25,138.26,138.2,35.34317968]
[1642574536038,2.892,138.25,138.2,35.34317968]
[1642574536239,17.1056,138.26,138.2,35.34317968]
[1642574536639,16.8556,138.26,138.2,35.34317968]
[1642574537237,0.25,138.25,138.2,35.34317968]
[1642574537439,16.8556,138.26,138.2,35.34317968]
[1642574538340,12.8487524,138.27,138.2,35.34317968]
[1642574538539,4.8861524,138.28,138.21,0.25]
[1642574538839,0.25,138.27,138.2,35.34317968]
[1642574539138,4.8861524,138.28,138.2,35.34317968]
[1642574539540,0.25,138.27,138.2,35.34317968]
[1642574539940,4.8861524,138.28,138.2,35.34317968]
[1642574540142,1.9941524,138.28,138.21,0.25]
[1642574540544,12.8479524,138.28,138.21,11.1036]
[1642574540948,1.9941524,138.27,138.21,11.1036]
[1642574541142,1.9941524,138.27,138.21,34.7435]
[1642574543045,2.2441524,138.26,138.21,34.7435]
[1642574543745,2.2441524,138.26,138.21,34.4935]
[1642574544148,1.9941524,138.25,138.21,34.4935]
[1642574544548,1.9941524,138.26,138.21,34.4935]
[1642574544748,2.2441524,138.26,138.21,34.4935]
[1642574545049,1.9941524,138.25,138.21,10.8536]
[1642574546750,1.9941524,138.24,138.21,10.8536]
[1642574546951,1.9941524,138.23,138.21,10.8536]
[1642574551295,1.9941524,138.23,138.22,0.04400353]
[1642574553186,1.9941524,138.24,138.22,0.29400353]
[1642574553894,1.9941524,138.24,138.22,0.04400353]
[1642574554686,4.09769406,138.28,138.22,11.14680353]
[1642574554892,4.09769406,138.29,138.22,83.51680353]
[1642574555286,3.59769406,138.29,138.22,83.51680353]
[1642574555487,0.021269,138.3,138.23,35.21801394]
[1642574555686,0.021269,138.3,138.24,0.25]
[1642574555887,4.11748334,138.3,138.24,0.25]
[1642574558789,0.25,138.29,138.23,69.56521394]
[1642574558992,3.142,138.29,138.23,69.56521394]
[1642574560191,13.9953,138.29,138.23,58.71351394]
[1642574560491,4.09396384,138.28,138.23,58.71351394]
[1642574561594,4.09396384,138.28,138.23,35.21801394]
[1642574562692,13.9953,138.29,138.23,35.21801394]
[1642574562894,13.9953,138.29,138.28,0.04400353]
[1642574563093,18.0889672,138.29,138.28,1e-08]
[1642574563294,24.15336714,138.29,138.28,1e-08]
[1642574564900,30.15336714,138.29,138.28,1e-08]
[1642574567503,27.26136714,138.29,138.28,1e-08]
[1642574569631,30.15336714,138.29,138.28,1e-08]
[1642574570229,35.89468705,138.29,138.28,1e-08]
[1642574570630,60.79758705,138.29,138.28,1e-08]
[1642574572433,65.46626714,138.29,138.28,1e-08]
[1642574573232,65.46626714,138.29,138.19,64.15211282]
[1642574573533,10.8561,138.26,138.19,64.15211282]
[1642574573732,0.25,138.25,138.19,64.15211282]
[1642574573934,0.25,138.25,138.19,40.34771282]
[1642574574134,6.25,138.25,138.19,40.34771282]
[1642574574535,6.25,138.25,138.16,24.9686]
[1642574574735,6.98823401,138.24,138.16,24.9686]
[1642574574935,2.894,138.24,138.16,24.9686]
[1642574575135,6.25,138.23,138.16,24.9686]
[1642574575335,6.25,138.23,138.15,10.8584]
[1642574575741,6.25,138.23,138.16,38.94966847]
[1642574575943,0.25,138.23,138.16,38.94966847]
[1642574576337,3.144,138.24,138.16,38.94966847]
[1642574576547,10.8589,138.22,138.16,38.94966847]
[1642574577239,10.8589,138.22,138.17,0.25]
[1642574578039,0.25,138.24,138.17,0.25]
[1642574578239,22.8378,138.25,138.17,24.4114]
[1642574578842,1.35873033,138.27,138.17,24.1614]
[1642574579040,6.0,138.26,138.17,24.1614]
[1642574579442,0.25,138.25,138.17,24.1614]
[1642574579640,0.25,138.25,138.17,27.0554]
[1642574580342,0.25,138.25,138.18,0.25]
[1642574580644,11.1063,138.25,138.18,0.25]
[1642574582446,11.1063,138.25,138.18,11.106]
[1642574582644,11.1063,138.25,138.19,38.40160371]
[1642574584047,8.892,138.24,138.18,0.25]
[1642574584248,0.25,138.23,138.15,2.892]
[1642574584447,2.894,138.22,138.14,22.6938]
[1642574584649,9.308,138.22,138.14,22.6938]
[1642574584947,0.25,138.21,138.14,22.6938]
[1642574585147,0.25,138.21,138.15,43.0771299]
[1642574585347,0.25,138.21,138.15,53.9355299]
[1642574585547,2.894,138.22,138.16,0.25]
[1642574585747,26.4057,138.23,138.16,0.25]
[1642574586147,0.25,138.22,138.16,0.25]
[1642574587449,0.25,138.22,138.16,11.1077]
[1642574587649,2.894,138.23,138.16,11.1077]
[1642574587849,6.0,138.24,138.16,35.496]
[1642574588051,32.4401,138.26,138.16,35.496]
[1642574588250,0.25,138.25,138.16,35.496]
[1642574589453,2.894,138.24,138.16,38.39]
[1642574590354,2.894,138.24,138.16,38.14]
[1642574590554,0.25,138.23,138.16,38.14]
[1642574590755,0.25,138.23,138.16,35.246]
[1642574591655,0.25,138.23,138.18,0.38374569]
[1642574592257,11.1078,138.23,138.18,0.38374569]
[1642574592459,2.894,138.22,138.18,0.38374569]
[1642574592660,8.765,138.22,138.18,0.38374569]
[1642574592859,0.25,138.21,138.18,0.38374569]
[1642574593060,6.06439994,138.2,138.18,0.38374569]
[1642574595993,0.25,138.19,138.18,0.38374569]
[1642574596188,3.144,138.19,138.18,0.38374569]
[1642574596388,9.144,138.19,138.18,0.38374569]
[1642574596789,9.144,138.19,138.11,25.34843176]
[1642574597194,9.144,138.19,138.12,44.83740153]
[1642574597390,14.0048,138.19,138.12,44.83740153]
[1642574597590,2.894,138.19,138.12,69.66870153]
[1642574597792,0.25,138.18,138.12,69.66870153]
[1642574598590,0.25,138.18,138.12,80.52950153]
[1642574598791,0.25,138.18,138.12,69.66870153]
[1642574598992,6.25,138.18,138.12,69.66870153]
[1642574599593,0.25,138.18,138.12,69.66870153]
[1642574599794,2.895,138.21,138.12,69.66870153]
[1642574599993,6.0,138.2,138.12,69.66870153]
[1642574600194,2.895,138.19,138.12,69.66870153]
[1642574600496,10.8618,138.18,138.12,69.66870153]
[1642574600693,11.1118,138.18,138.12,69.66870153]
[1642574601695,11.1118,138.18,138.12,44.83740153]
[1642574601894,11.1118,138.18,138.12,44.58740153]
[1642574602095,10.8637,138.16,138.08,26.2669]
[1642574602295,3.146,138.15,138.08,23.3719]
[1642574602495,14.625,138.15,138.08,23.3719]
[1642574602695,6.0,138.14,138.08,23.3719]
[1642574602895,2.896,138.13,138.08,23.3719]
[1642574603198,3.146,138.13,138.08,23.3719]
[1642574603496,0.25,138.13,138.08,23.3719]
[1642574604296,3.146,138.14,138.08,23.3719]
[1642574604495,16.8664,138.13,138.08,23.3719]
[1642574604796,0.25,138.12,138.08,23.3719]
[1642574605997,0.25,138.13,138.08,23.3719]
[1642574606498,10.8661,138.12,138.08,23.3719]
[1642574606697,0.25,138.11,138.08,23.3719]
[1642574606898,0.25,138.11,138.1,0.98467204]
[1642574608401,6.31439994,138.11,138.1,0.98467204]
[1642574609399,17.18159994,138.11,138.1,0.98467204]
[1642574609598,2.896,138.1,138.01,13.306]
[1642574609800,0.25,138.09,138.01,10.41]
[1642574610701,11.1195,138.09,138.02,43.84830055]
[1642574611101,6.0,138.08,138.02,43.84830055]
[1642574611303,6.0,138.08,138.02,43.59830055]
[1642574611504,0.25,138.07,138.02,54.46700055]
[1642574612702,0.25,138.07,138.02,43.59830055]
[1642574614104,10.8683,138.1,138.03,0.25]
[1642574614308,2.896,138.13,138.03,1.63956707]
[1642574614507,2.896,138.13,138.03,29.49686707]
[1642574614706,6.0,138.12,138.03,101.86686707]
[1642574615710,0.25,138.11,138.03,101.86686707]
[1642574615907,6.0,138.12,138.03,101.86686707]
[1642574616308,16.8661,138.12,138.04,12.25661478]
[1642574616509,16.8661,138.12,138.04,10.8669]
[1642574616707,16.8661,138.12,138.05,0.25]
[1642574617708,16.8661,138.12,138.04,0.25]
[1642574618406,16.8661,138.12,138.05,10.8659]
[1642574618607,16.8661,138.12,138.06,47.76807825]
[1642574619611,16.8661,138.12,138.05,10.8659]
[1642574619811,11.1174,138.11,138.04,0.25]
[1642574620612,6.0,138.1,138.04,46.45175558]
[1642574621415,6.0,138.1,138.04,57.31885558]
[1642574626023,6.0,138.1,138.04,57.06885558]
[1642574626220,3.146,138.09,138.02,10.868]
[1642574626426,3.146,138.09,138.0,45.6683]
[1642574626621,3.146,138.09,138.0,22.668]
[1642574626622,6.0,138.08,138.0,22.668]
[1642574626823,3.146,138.07,138.0,22.668]
[1642574627022,3.146,138.07,137.97,10.41]
[1642574627023,6.0,138.06,137.97,10.41]
[1642574627223,3.148,138.05,137.99,35.07866877]
[1642574627625,6.0,138.04,137.99,35.07866877]
[1642574627824,16.8722,138.04,137.99,35.07866877]
[1642574628524,10.8722,138.04,137.99,35.07866877]
[1642574629145,0.25,138.05,138.0,0.25]
[1642574629345,10.8711,138.05,137.99,35.07866877]
[1642574630045,0.25,138.04,137.99,35.07866877]
[1642574631650,13.7691,138.05,138.0,0.25]
[1642574631849,2.898,138.07,138.0,0.25]
[1642574632048,13.308,138.13,138.01,2.898]
[1642574632248,13.308,138.13,138.02,0.25]
[1642574632447,6.0,138.12,138.02,0.25]
[1642574632659,2.896,138.11,138.02,72.54061629]
[1642574633049,6.0,138.1,138.02,72.29061629]
[1642574633249,6.0,138.1,138.03,0.25]
[1642574633450,10.8681,138.09,138.03,11.1176]
[1642574634450,10.8681,138.09,138.03,0.25]
[1642574639157,10.8681,138.09,138.03,11.1177]
[1642574639461,16.8673,138.11,138.03,11.1177]
[1642574641760,19.7633,138.11,138.03,11.1177]
[1642574643760,16.8673,138.11,138.03,11.1177]
[1642574645362,19.7633,138.11,138.03,11.1177]
[1642574648665,19.7633,138.11,138.03,10.8677]